bitfinex/quotes_SOLUSD_20220227
["timestamp","ask_amount","ask_price","bid_price","bid_amount"]
[1645927815644,82.09497019,87.209,87.151,2.36575711]
[1645927816045,58.32277019,87.209,87.151,2.36575711]
[1645927816543,24.07,87.212,87.16,17.2133]
[1645927816744,4.588,87.216,87.161,2.886599]
[1645927816944,4.587,87.217,87.161,2.886599]
[1645927817345,1.58276902,87.225,87.143,114.2]
[1645927817544,1.58276902,87.227,87.17,17.2117]
[1645927817847,1.58276902,87.228,87.171,3.00423386]
[1645927818247,57.3776,87.23,87.171,3.00423386]
[1645927819247,1.58276902,87.237,87.18,17.209]
[1645927819748,24.4111,87.239,87.181,2.73190332]
[1645927820147,17.2122,87.24,87.181,2.73190332]
[1645927820349,17.2122,87.24,87.19,17.2069]
[1645927820552,17.2122,87.24,87.191,3.0384236]
[1645927821971,17.2122,87.24,87.181,2.79505695]
[1645927822371,7.33278921,87.239,87.162,2.89263638]
[1645927822766,24.90748173,87.238,87.162,2.89263638]
[1645927822966,4.587,87.237,87.162,2.89263638]
[1645927823169,29.49448173,87.237,87.162,2.89263638]
[1645927823366,2.74678921,87.236,87.162,2.89263638]
[1645927823569,4.587,87.235,87.162,2.89263638]
[1645927823967,16.58,87.23,87.131,4.587]
[1645927824167,16.58,87.23,87.13,8.65]
[1645927824168,27.7231,87.229,87.13,8.65]
[1645927824368,1.58276902,87.225,87.13,8.65]
[1645927824567,16.58,87.22,87.13,8.65]
[1645927824770,4.588,87.219,87.13,8.65]
[1645927824967,18.45626224,87.219,87.13,8.65]
[1645927825168,17.2224,87.21,87.13,8.65]
[1645927825369,53.27654997,87.208,87.13,8.65]
[1645927825567,4.588,87.207,87.13,8.65]
[1645927825967,7.33478921,87.207,87.13,8.65]
[1645927826167,2.74678921,87.206,87.13,8.65]
[1645927827569,4.588,87.205,87.13,8.65]
[1645927828970,2.74678921,87.204,87.132,2.9997702]
[1645927829170,4.588,87.203,87.13,8.65]
[1645927829374,16.58,87.2,87.13,8.65]
[1645927829573,4.588,87.199,87.13,8.65]
[1645927829872,17.47220624,87.199,87.13,8.65]
[1645927830069,2.74678921,87.198,87.13,8.65]
[1645927830269,4.589,87.197,87.13,8.65]
[1645927830673,2.74678921,87.196,87.13,8.65]
[1645927830874,4.589,87.195,87.13,8.65]
[1645927831271,2.74678921,87.194,87.13,8.65]
[1645927833575,4.589,87.193,87.13,8.65]
[1645927833977,2.74678921,87.192,87.13,8.65]
[1645927834177,4.589,87.191,87.13,8.65]
[1645927834682,2.74678921,87.19,87.13,8.65]
[1645927835078,4.589,87.189,87.13,8.65]
[1645927835579,2.74678921,87.188,87.13,8.65]
[1645927835880,4.589,87.187,87.13,8.65]
[1645927836078,16.61227549,87.187,87.13,8.65]
[1645927836280,2.74678921,87.186,87.13,8.65]
[1645927836479,4.589,87.185,87.13,8.65]
[1645927836882,2.74678921,87.184,87.13,8.65]
[1645927837083,59.21348894,87.179,87.13,8.65]
[1645927837282,4.589,87.178,87.13,8.65]
[1645927837482,7.33578921,87.178,87.13,8.65]
[1645927837883,2.74678921,87.177,87.13,8.65]
[1645927838083,4.589,87.176,87.13,8.65]
[1645927838486,2.74678921,87.175,87.13,8.65]
[1645927838683,4.589,87.174,87.13,8.65]
[1645927839085,2.74,87.173,87.13,8.65]
[1645927839286,4.589,87.172,87.13,8.65]
[1645927839485,16.58,87.16,87.13,8.65]
[1645927839686,4.59,87.159,87.13,8.65]
[1645927839891,7.33,87.159,87.13,8.65]
[1645927840294,2.74678921,87.158,87.13,8.65]
[1645927840489,4.59,87.157,87.13,8.65]
[1645927840989,2.74678921,87.156,87.13,8.65]
[1645927842688,2.74678921,87.156,87.074,2.77972762]
[1645927842891,17.2364,87.14,87.074,2.77972762]
[1645927843189,44.12058028,87.138,87.042,2.51364921]
[1645927843389,4.591,87.137,87.042,2.51364921]
[1645927843592,29.49848173,87.137,87.042,2.51364921]
[1645927843991,15.31438823,87.136,87.042,2.51364921]
[1645927844192,4.593,87.135,87.042,2.51364921]
[1645927844398,7.33978921,87.135,87.042,2.51364921]
[1645927844592,12.87741703,87.134,87.042,2.51364921]
[1645927844791,16.58,87.12,87.042,2.51364921]
[1645927844992,4.593,87.119,87.042,2.51364921]
[1645927846195,2.74,87.118,87.042,2.51364921]
[1645927846392,4.593,87.117,87.042,2.51364921]
[1645927846792,7.33978921,87.117,87.042,2.51364921]
[1645927847394,31.29703891,87.117,87.042,2.51364921]
[1645927851801,17.2425,87.11,87.014,3.06988021]
[1645927851999,48.81968648,87.108,87.014,3.06988021]
[1645927852201,4.594,87.107,87.014,3.06988021]
[1645927852399,31.29803891,87.107,87.014,3.06988021]
[1645927852799,48.85794222,87.106,87.014,3.06988021]
[1645927852999,4.594,87.105,87.014,3.06988021]
[1645927853210,54.94703891,87.105,87.014,3.06988021]
[1645927853401,26.6972497,87.104,87.014,3.06988021]
[1645927853602,16.58,87.1,87.014,3.06988021]
[1645927853807,4.594,87.099,87.014,3.06988021]
[1645927854000,28.5512497,87.099,87.014,3.06988021]
[1645927854203,31.29803891,87.099,87.014,3.06988021]
[1645927854401,26.70403891,87.098,86.97,235.4165]
[1645927854602,118.795,87.097,86.985,45.2193]
[1645927854801,1.65933965,87.096,86.986,2.84988529]
[1645927855002,4.595,87.095,86.986,2.84988529]
[1645927855200,16.58,87.08,86.986,2.84988529]
[1645927855403,60.49044623,87.079,86.986,2.84988529]
[1645927855625,63.23723544,87.079,86.986,2.84988529]
[1645927855801,82.59948514,87.079,86.986,2.84988529]
[1645927856405,82.59948514,87.079,86.99,17.2436]
[1645927856602,82.59948514,87.079,86.991,2.37915079]
[1645927856804,4.595,87.078,86.986,4.595]
[1645927857103,4.595,87.078,86.986,7.07701468]
[1645927857302,4.595,87.078,87.0,17.2432]
[1645927857502,4.595,87.078,87.001,3.07546036]
[1645927857702,82.59948514,87.079,87.001,3.07546036]
[1645927857904,23.9572497,87.077,87.001,3.07546036]
[1645927858305,4.595,87.076,87.001,3.07546036]
[1645927859103,23.9572497,87.077,87.001,3.07546036]
[1645927859304,2.74678921,87.078,87.001,3.07546036]
[1645927859503,2.74678921,87.078,87.002,2.50889444]
[1645927860717,2.74678921,87.078,87.01,17.2411]
[1645927860907,16.58,87.08,87.002,2.50889444]
[1645927860908,17.2483,87.09,87.003,4.595]
[1645927861108,17.2483,87.09,87.005,2.85521851]
[1645927861308,17.2483,87.09,87.011,2.74678921]
[1645927861707,52.06246968,87.089,87.013,2.67294345]
[1645927862007,52.06246968,87.089,87.02,17.2393]
[1645927862207,52.06246968,87.089,87.021,2.29195876]
[1645927862609,17.2483,87.09,87.021,2.29195876]
[1645927863010,17.2483,87.09,87.014,117.24320955]
[1645927863309,17.2483,87.09,87.015,2.6772215]
[1645927863807,17.2483,87.09,87.03,17.2375]
[1645927864010,17.2483,87.09,87.031,3.07153086]
[1645927864810,17.2483,87.09,87.021,2.89239474]
[1645927865009,17.2483,87.09,87.014,2.6833752]
[1645927865213,17.2483,87.09,87.021,2.64615058]
[1645927865410,80.5920385,87.12,87.013,23.5849]
[1645927865411,57.4527,87.12,87.022,10.4259904]
[1645927865609,4.593,87.119,87.024,2.51490859]
[1645927865811,57.4527,87.12,87.024,2.51490859]
[1645927866011,51.11964459,87.119,87.024,2.51490859]
[1645927866411,51.11964459,87.119,87.025,2.28664212]
[1645927866715,51.11964459,87.119,87.051,2.78751928]
[1645927867715,53.8664338,87.119,87.051,2.78751928]
[1645927868316,53.8664338,87.119,87.04,17.2362]
[1645927868517,4.593,87.118,87.041,2.88931499]
[1645927868917,25.69086771,87.117,87.041,2.88931499]
[1645927869118,4.593,87.116,87.042,24.4082]
[1645927869319,38.50580407,87.116,87.043,2.81298244]
[1645927869520,22.9440785,87.115,87.043,2.81298244]
[1645927869719,4.593,87.114,87.043,2.81298244]
[1645927869918,7.33978921,87.114,87.043,2.81298244]
[1645927870319,2.74678921,87.113,87.043,2.81298244]
[1645927870839,22.9440785,87.112,87.043,2.81298244]
[1645927871242,2.74678921,87.111,87.043,2.81298244]
[1645927877444,22.9440785,87.11,87.043,2.81298244]
[1645927877649,4.593,87.109,87.043,2.81298244]
[1645927877849,7.333,87.109,87.043,2.81298244]
[1645927878145,2.74678921,87.108,87.043,2.81298244]
[1645927878347,4.593,87.107,87.043,2.81298244]
[1645927878747,2.74,87.106,87.043,2.81298244]
[1645927878947,4.593,87.105,87.043,2.81298244]
[1645927879349,2.74678921,87.104,87.043,2.81298244]
[1645927882864,17.2379,87.11,87.043,2.81298244]
[1645927883061,2.74678921,87.114,87.043,9.94298244]
[1645927883261,2.74678921,87.124,87.044,114.2]
[1645927883462,22.9440785,87.137,87.046,114.2]
[1645927883664,57.437,87.14,87.047,3.07079372]
[1645927883860,56.55838502,87.139,87.05,16.58]
[1645927884063,56.55838502,87.139,87.07,17.2301]
[1645927884260,56.55838502,87.139,87.071,24.6468]
[1645927884462,56.55838502,87.139,87.072,3.09735282]
[1645927885361,79.50246352,87.139,87.072,3.09735282]
[1645927887374,79.50246352,87.139,87.08,17.2295]
[1645927887578,79.50246352,87.139,87.081,2.56304565]
[1645927889492,22.9440785,87.139,87.081,2.56304565]
[1645927889693,22.9440785,87.139,87.081,9.41304565]
[1645927892598,25.69086771,87.139,87.081,6.85]
[1645927893895,2.74678921,87.139,87.081,6.85]
[1645927894498,2.74678921,87.139,87.081,9.94148322]
[1645927899409,104.04542539,87.14,87.081,9.94148322]
[1645927900221,57.437,87.14,87.081,9.94148322]
[1645927905110,57.437,87.14,87.081,31.378]
[1645927905410,57.437,87.14,87.082,3.0705637]
[1645927905711,57.437,87.14,87.081,31.378]
[1645927905712,57.437,87.14,87.09,17.228]
[1645927905914,4.591,87.155,87.091,2.81537668]
[1645927906111,4.591,87.157,87.091,24.9479]
[1645927906312,4.591,87.157,87.092,2.64617456]
[1645927906711,4.591,87.157,87.1,17.2261]
[1645927906913,8.1629005,87.158,87.101,2.646975]
[1645927907313,31.106979,87.158,87.101,2.646975]
[1645927907513,31.106979,87.158,87.091,24.9479]
[1645927907720,31.106979,87.158,87.092,2.9649399]
[1645927907721,53.7723304,87.157,87.092,2.9649399]
[1645927907917,61.9352309,87.157,87.092,2.9649399]
[1645927908114,22.9440785,87.156,87.092,2.9649399]
[1645927908313,25.69086771,87.156,87.092,2.9649399]
[1645927908517,33.85376821,87.156,87.092,2.9649399]
[1645927908714,8.1629005,87.156,87.1,17.2262]
[1645927908915,57.4214,87.16,87.091,24.9479]
[1645927909117,57.4214,87.16,87.092,2.66845458]
[1645927909715,48.92683973,87.159,87.1,17.2249]
[1645927910015,48.92683973,87.159,87.101,2.81651341]
[1645927911716,48.92683973,87.159,87.11,17.2243]
[1645927911921,48.92683973,87.159,87.111,2.45537195]
[1645927927044,46.0307785,87.175,87.12,17.2225]
[1645927927245,46.0307785,87.175,87.121,2.88345758]
[1645927927846,4.59,87.174,87.121,2.88345758]
[1645927928047,58.61627884,87.169,87.091,29.5379]
[1645927928247,81.68307884,87.169,87.11,17.2239]
[1645927928447,81.68307884,87.169,87.111,24.9659]
[1645927928647,81.68307884,87.169,87.112,2.89817864]
[1645927930449,23.1000785,87.168,87.112,2.89817864]
[1645927931773,22.9440785,87.168,87.112,2.89817864]
[1645927933187,2.74678921,87.167,87.091,24.8025]
[1645927933380,4.59,87.166,87.092,2.8464372]
[1645927933679,27.5340785,87.166,87.092,2.8464372]
[1645927933882,26.37390357,87.165,87.092,2.8464372]
[1645927934080,4.59,87.164,87.092,2.8464372]
[1645927934282,54.1230409,87.164,87.092,2.8464372]
[1645927934584,26.37390357,87.163,87.092,2.8464372]
[1645927934782,4.59,87.162,87.092,2.8464372]
[1645927934981,30.28086771,87.162,87.092,2.8464372]
[1645927935183,23.47111436,87.161,87.092,2.8464372]
[1645927935393,4.591,87.16,87.092,2.8464372]
[1645927935582,53.59700504,87.16,87.092,2.8464372]
[1645927935881,2.74678921,87.159,87.092,2.8464372]
[1645927936082,4.591,87.158,87.092,2.8464372]
[1645927936490,2.74678921,87.157,87.092,2.8464372]
[1645927936686,4.591,87.156,87.092,2.8464372]
[1645927937187,2.74678921,87.155,87.092,2.8464372]
[1645927937384,4.591,87.154,87.092,2.8464372]
[1645927937787,2.74678921,87.153,87.092,2.8464372]
[1645927937987,4.591,87.152,87.092,2.8464372]
[1645927938884,23.9591,87.158,87.092,2.8464372]
[1645927940083,23.99817319,87.159,87.092,2.8464372]
[1645927940286,2.74678921,87.164,87.1,17.2255]
[1645927940484,23.84217319,87.168,87.101,3.04762565]
[1645927940885,23.84217319,87.168,87.091,24.8025]
[1645927940886,23.84217319,87.168,87.092,2.72929588]
[1645927941384,23.84217319,87.168,87.111,3.1191613]
[1645927941584,23.84217319,87.168,87.113,2.70122044]
[1645927943686,55.86948963,87.169,87.113,2.70122044]
[1645927944685,55.86948963,87.169,87.12,17.2224]
[1645927944888,55.86948963,87.169,87.121,2.65604771]
[1645927951992,27.3064,87.174,87.121,2.65604771]
[1645927952192,17.2206,87.17,87.13,17.2205]
[1645927952391,17.2206,87.17,87.131,2.28247989]
[1645927957516,49.9664352,87.169,87.131,2.28247989]
[1645927960317,17.2206,87.17,87.131,2.28247989]
[1645927963721,17.2206,87.17,87.14,17.2184]
[1645927963918,4.589,87.197,87.122,2.76544165]
[1645927964119,23.2391,87.203,87.125,3.08067254]
[1645927964321,50.99210727,87.202,87.126,4.589]
[1645927964918,50.99210727,87.202,87.15,17.2156]
[1645927965118,50.99210727,87.202,87.151,2.92912386]
[1645927965719,50.99210727,87.202,87.152,2.90284999]
[1645927966520,7.328,87.201,87.141,2.62741125]
[1645927966719,7.328,87.201,87.121,2.57933491]
[1645927966921,2.74678921,87.2,87.121,2.57933491]
[1645927967522,2.74678921,87.2,87.131,2.36883558]
[1645927967924,2.74678921,87.2,87.133,2.25771955]
[1645927968122,50.99210727,87.202,87.133,2.25771955]
[1645927968525,50.99210727,87.202,87.15,17.2151]
[1645927968724,50.99210727,87.202,87.151,23.2808]
[1645927969025,50.99210727,87.202,87.152,2.28946514]
[1645927976326,50.99210727,87.202,87.16,17.2146]
[1645927976528,50.99210727,87.202,87.161,2.60063501]
[1645927976928,57.388,87.21,87.161,2.60063501]
[1645927977127,28.3521,87.219,87.162,22.5396]
[1645927977328,23.7641,87.219,87.163,2.85399022]
[1645927977929,60.00640299,87.228,87.163,2.85399022]
[1645927978330,60.00640299,87.228,87.18,17.2108]
[1645927978530,60.00640299,87.228,87.181,3.05993528]
[1645927980931,60.00640299,87.228,87.171,2.38651331]
[1645927981232,60.00640299,87.228,87.173,2.57753549]
[1645927984238,60.00640299,87.228,87.18,17.2103]
[1645927984440,60.00640299,87.228,87.181,2.26493274]
[1645927987239,23.1078,87.236,87.181,2.26493274]
[1645927987439,23.1078,87.236,87.19,17.2085]
[1645927987639,23.1078,87.236,87.191,2.75306224]
[1645927992951,23.1078,87.236,87.191,10.35306224]
[1645927994348,57.3657,87.25,87.2,17.2064]
[1645927994549,57.3657,87.25,87.201,2.72865971]
[1645927994754,4.586,87.259,87.201,2.72865971]
[1645927995352,58.77099631,87.253,87.21,17.2045]
[1645927995550,58.77099631,87.253,87.211,3.06100274]
[1645927996449,17.2038,87.25,87.211,3.06100274]
[1645927996649,4.586,87.259,87.211,3.06100274]
[1645927996851,24.8729,87.26,87.211,3.06100274]
[1645927997553,42.0767,87.26,87.211,3.06100274]
[1645927998270,42.0767,87.26,87.212,23.6335]
[1645927998471,42.0767,87.26,87.213,2.28869614]
[1645927998870,17.2038,87.26,87.213,2.28869614]
[1645927999071,23.3285,87.269,87.213,2.28869614]
[1645927999872,47.26593667,87.276,87.22,17.2015]
[1645928000071,47.26593667,87.276,87.221,2.25485086]
[1645928001272,47.26593667,87.276,87.223,2.4797896]
[1645928002375,4.583,87.275,87.223,2.4797896]
[1645928002872,23.7138,87.289,87.231,3.03261285]
[1645928003072,4.583,87.307,87.223,2.50104945]
[1645928003276,27.2057,87.308,87.223,2.50104945]
[1645928003671,46.10292234,87.307,87.223,116.70104945]
[1645928003871,46.10292234,87.307,87.224,2.5063947]
[1645928004072,4.583,87.306,87.224,2.5063947]
[1645928004272,1.58276902,87.326,87.241,114.2]
[1645928004571,23.1187,87.335,87.244,2.38022315]
[1645928004975,22.6943153,87.335,87.246,114.2]
[1645928005172,22.6943153,87.335,87.247,2.55269892]
[1645928005374,4.582,87.334,87.271,114.2]
[1645928005575,1.58276902,87.363,87.272,2.76452232]
[1645928005778,21.34541,87.369,87.274,114.2]
[1645928005979,21.34541,87.37,87.275,2.85196558]
[1645928006179,20.84541,87.37,87.275,2.85196558]
[1645928006378,44.82756443,87.369,87.281,114.2]
[1645928006579,4.58,87.368,87.282,2.5596927]
[1645928006781,28.22207666,87.368,87.282,2.5596927]
[1645928007182,23.64207666,87.367,87.274,2.27115358]
[1645928007382,4.58,87.366,87.274,2.27115358]
[1645928007584,7.32678921,87.366,87.274,2.27115358]
[1645928007782,23.64207666,87.365,87.274,2.27115358]
[1645928008083,1.38725488,87.359,87.251,2.63941095]
[1645928008282,4.581,87.358,87.232,2.36993949]
[1645928008484,4.581,87.358,87.23,16.58]
[1645928008485,1.73688182,87.356,87.251,2.32173214]
[1645928008687,4.581,87.355,87.251,2.32173214]
[1645928008884,4.581,87.355,87.231,3.05093965]
[1645928009085,1.57077366,87.353,87.231,3.05093965]
[1645928009284,16.58,87.35,87.231,3.05093965]
[1645928009483,4.582,87.349,87.24,17.1959]
[1645928009685,4.582,87.349,87.241,24.2942]
[1645928009884,27.52663208,87.348,87.242,2.46950361]
[1645928010087,4.582,87.347,87.242,2.46950361]
[1645928010284,9.03474395,87.347,87.242,2.46950361]
[1645928010486,141.72663208,87.346,87.227,2.90710346]
[1645928010685,17.1996,87.33,87.227,2.90710346]
[1645928010884,16.58,87.32,87.227,2.90710346]
[1645928011086,4.583,87.319,87.227,2.90710346]
[1645928011485,23.64207666,87.318,87.227,2.90710346]
[1645928011686,4.583,87.317,87.227,2.90710346]
[1645928012087,23.64207666,87.316,87.227,2.90710346]
[1645928012287,17.2017,87.31,87.227,2.90710346]
[1645928012594,23.64207666,87.309,87.227,2.90710346]
[1645928012792,4.583,87.308,87.227,2.90710346]
[1645928013187,48.42191953,87.307,87.227,2.90710346]
[1645928013486,28.22507666,87.306,87.227,2.90710346]
[1645928013689,30.97186587,87.306,87.227,2.90710346]
[1645928013888,48.42191953,87.305,87.227,2.90710346]
[1645928014087,4.583,87.304,87.227,2.90710346]
[1645928014288,30.97186587,87.304,87.227,2.90710346]
[1645928014487,26.38886587,87.303,87.227,2.90710346]
[1645928014687,42.90488401,87.301,87.205,2.80644484]
[1645928014888,4.583,87.3,87.205,2.80644484]
[1645928015287,7.32978921,87.3,87.205,2.80644484]
[1645928015488,2.74678921,87.299,87.205,2.80644484]
[1645928015687,4.583,87.298,87.205,2.80644484]
[1645928016092,2.74,87.297,87.205,2.80644484]
[1645928016293,4.583,87.296,87.205,2.80644484]
[1645928016692,2.74678921,87.295,87.205,2.80644484]
[1645928016892,4.583,87.294,87.205,2.80644484]
[1645928017096,4.583,87.294,87.206,4.583]
[1645928017294,2.74,87.293,87.206,4.583]
[1645928017495,4.583,87.292,87.206,4.583]
[1645928017995,2.74678921,87.291,87.206,4.583]
[1645928018195,4.583,87.29,87.206,4.583]
[1645928018596,2.74,87.289,87.205,2.80644484]
[1645928018796,4.583,87.288,87.181,7.4249074]
[1645928018996,30.08789872,87.288,87.181,7.4249074]
[1645928019199,35.27007081,87.287,87.181,2.8419074]
[1645928019396,5.98788479,87.286,87.181,2.8419074]
[1645928019598,32.36996145,87.286,87.181,2.8419074]
[1645928019796,1.84643296,87.285,87.182,4.585]
[1645928019998,16.58,87.27,87.182,4.585]
[1645928020196,47.04000862,87.269,87.182,4.585]
[1645928020399,4.585,87.268,87.181,2.8419074]
[1645928020597,29.36484287,87.268,87.181,2.8419074]
[1645928020796,23.64207666,87.267,87.181,2.8419074]
[1645928020996,4.585,87.266,87.163,7.44334615]
[1645928021196,29.36484287,87.266,87.164,114.2]
[1645928021398,32.11163208,87.266,87.165,121.78511704]
[1645928021597,2.74678921,87.265,87.165,7.58511704]
[1645928021798,17.2078,87.26,87.167,2.82080892]
[1645928022007,17.2078,87.26,87.168,4.586]
[1645928023201,2.74,87.259,87.167,2.82080892]
[1645928023703,24.77984287,87.258,87.167,2.82080892]
[1645928023904,4.586,87.257,87.167,2.82080892]
[1645928024103,7.33278921,87.257,87.167,2.82080892]
[1645928024301,2.74,87.256,87.167,2.82080892]
[1645928024501,4.586,87.255,87.167,2.82080892]
[1645928024902,2.74678921,87.254,87.167,2.82080892]
[1645928025103,4.586,87.253,87.167,2.82080892]
[1645928025303,16.58,87.25,87.167,2.82080892]
[1645928025504,4.586,87.249,87.167,2.82080892]
[1645928025903,30.97486587,87.249,87.167,2.82080892]
[1645928026102,51.16191953,87.248,87.167,2.82080892]
[1645928026304,4.586,87.247,87.167,2.82080892]
[1645928026505,30.97486587,87.247,87.167,2.82080892]
[1645928026703,48.42191953,87.246,87.167,2.82080892]
[1645928026905,4.586,87.245,87.167,2.82080892]
[1645928027105,30.97486587,87.245,87.167,2.82080892]
[1645928027306,2.74678921,87.244,87.167,2.82080892]
[1645928027505,4.586,87.243,87.167,2.82080892]
[1645928027708,60.96092713,87.242,87.167,2.82080892]
[1645928027913,4.586,87.241,87.167,2.82080892]
[1645928028110,7.33278921,87.241,87.167,2.82080892]
[1645928028308,16.58,87.24,87.167,2.82080892]
[1645928028505,4.586,87.239,87.167,2.82080892]
[1645928028706,7.33278921,87.239,87.167,2.82080892]
[1645928029107,2.74678921,87.238,87.167,2.82080892]
[1645928029405,4.587,87.237,87.167,2.82080892]
[1645928029608,2.74678921,87.238,87.167,2.82080892]
[1645928029808,41.35984287,87.24,87.167,2.82080892]
[1645928029809,2.74678921,87.236,87.167,2.82080892]
[1645928030008,4.587,87.235,87.167,2.82080892]
[1645928030416,2.74678921,87.234,87.167,2.82080892]
[1645928030611,4.587,87.233,87.167,2.82080892]
[1645928031213,2.74678921,87.234,87.167,2.82080892]
[1645928033929,4.587,87.233,87.167,2.82080892]
[1645928035530,2.74678921,87.232,87.167,2.82080892]
[1645928035731,4.587,87.231,87.167,2.82080892]
[1645928036130,2.74678921,87.23,87.167,2.82080892]
[1645928036331,4.587,87.229,87.167,2.82080892]
[1645928036532,4.587,87.229,87.144,2.94230759]
[1645928036730,2.74678921,87.228,87.126,2.88023401]
[1645928036930,4.588,87.227,87.126,2.88023401]
[1645928037231,53.00991953,87.227,87.126,2.88023401]
[1645928037431,2.74678921,87.226,87.13,17.2162]
[1645928037631,4.588,87.225,87.13,17.2162]
[1645928037831,4.588,87.225,87.125,46.0895]
[1645928038031,16.58,87.22,87.126,2.74813146]
[1645928038232,4.588,87.219,87.126,2.74813146]
[1645928038634,28.23007666,87.219,87.126,2.74813146]
[1645928038936,48.42191953,87.218,87.126,2.74813146]
[1645928039134,4.588,87.217,87.126,2.74813146]
[1645928039334,28.23007666,87.217,87.126,2.74813146]
[1645928039536,48.42191953,87.216,87.126,2.74813146]
[1645928039737,60.40742412,87.215,87.126,2.74813146]
[1645928039936,108.82934365,87.215,87.126,2.74813146]
[1645928040137,1.66685777,87.214,87.126,2.74813146]
[1645928040337,16.58,87.2,87.126,2.74813146]
[1645928040535,4.589,87.199,87.126,2.74813146]
[1645928042941,16.58,87.2,87.126,2.74813146]
[1645928047143,57.4056,87.21,87.126,2.74813146]
[1645928048548,21.8094,87.22,87.141,3.0735993]
[1645928048752,21.8094,87.22,87.132,2.83589218]
[1645928048947,1.58276902,87.255,87.143,182.71]
[1645928049151,1.58276902,87.265,87.152,68.51]
[1645928049347,44.81829488,87.264,87.154,3.0603312]
[1645928049546,44.81829488,87.264,87.157,2.44840111]
[1645928049746,44.81829488,87.264,87.155,48.1276]
[1645928049747,44.81829488,87.264,87.19,17.2045]
[1645928049948,44.81829488,87.264,87.191,2.37702371]
[1645928051353,17.2046,87.26,87.191,2.37702371]
[1645928052151,17.2046,87.26,87.2,17.2037]
[1645928052351,17.2046,87.26,87.201,2.90438272]
[1645928052556,44.81829488,87.264,87.181,2.51400418]
[1645928053150,44.81829488,87.264,87.21,17.2008]
[1645928053350,44.81829488,87.264,87.211,2.62433172]
[1645928054554,17.2026,87.26,87.211,2.62433172]
[1645928055354,17.2026,87.26,87.201,2.45848509]
[1645928056751,17.2026,87.26,87.191,2.85823238]
[1645928057154,4.585,87.259,87.191,2.85823238]
[1645928058655,17.2026,87.26,87.191,2.85823238]
[1645928059256,4.585,87.259,87.173,2.96457392]
[1645928059457,7.325,87.259,87.173,2.96457392]
[1645928059655,27.95444748,87.259,87.173,2.96457392]
[1645928059857,22.8731762,87.258,87.173,2.96457392]
[1645928060056,4.586,87.257,87.173,2.96457392]
[1645928061758,4.586,87.258,87.173,2.96457392]
[1645928062360,56.6557762,87.26,87.173,2.96457392]
[1645928062763,33.7826,87.26,87.173,2.96457392]
[1645928064065,33.7826,87.26,87.18,17.2076]
[1645928064263,17.2026,87.26,87.18,17.2076]
[1645928064463,17.2026,87.26,87.181,3.09862694]
[1645928067468,17.2026,87.26,87.191,2.77941685]
[1645928069472,4.585,87.259,87.181,2.51079576]
[1645928069676,27.4581762,87.259,87.173,2.7460442]
[1645928069972,7.325,87.259,87.173,2.7460442]
[1645928070174,4.585,87.259,87.173,2.7460442]
[1645928072073,22.8731762,87.258,87.173,2.7460442]
[1645928072274,4.586,87.257,87.173,2.7460442]
[1645928072475,4.586,87.257,87.18,17.2091]
[1645928072679,4.586,87.257,87.181,2.80557765]
[1645928073492,22.8731762,87.258,87.181,2.80557765]
[1645928076594,4.586,87.257,87.181,2.80557765]
[1645928080296,17.2026,87.26,87.182,3.09062875]
[1645928080498,1.58276902,87.264,87.182,3.09062875]
[1645928080703,4.586,87.276,87.184,114.2]
[1645928080904,1.58276902,87.289,87.185,2.71796321]
[1645928081102,57.3385,87.29,87.185,5.46475242]
[1645928081301,44.41542207,87.289,87.2,57.3373]
[1645928081503,44.41542207,87.289,87.201,25.92410016]
[1645928081702,20.62944748,87.288,87.202,3.03759848]
[1645928081902,4.583,87.287,87.202,3.03759848]
[1645928082205,1.58276902,87.282,87.202,3.03759848]
[1645928082402,1.58276902,87.28,87.202,3.03759848]
[1645928082602,4.585,87.279,87.202,3.03759848]
[1645928082801,26.42448215,87.279,87.202,3.03759848]
[1645928083001,1.58276902,87.277,87.202,3.03759848]
[1645928083202,1.58276902,87.275,87.202,3.03759848]
[1645928083404,4.585,87.274,87.202,3.03759848]
[1645928083602,16.58,87.27,87.202,3.03759848]